bitfinex-derivatives/quotes_ETHF0:USTF0_20250726
["timestamp","ask_amount","ask_price","bid_price","bid_amount"]
[1753566561267,1.727,3751.5,3751.4,1.71598]
[1753566562368,1.727,3751.5,3751.4,0.53298]
[1753566563462,1.727,3751.5,3751.4,0.82208]
[1753566564165,1.727,3751.5,3751.4,1.51728]
[1753566564570,1.727,3751.5,3751.4,1.69258]
[1753566566676,1.727,3751.5,3751.4,1.97308]
[1753566573376,1.727,3751.5,3751.4,1.69258]
[1753566573583,1.727,3751.5,3751.4,0.53298]
[1753566579478,1.727,3751.5,3751.4,0.83288]
[1753566581785,1.727,3751.5,3751.4,1.32378]
[1753566582182,1.727,3751.5,3751.4,1.52918]
[1753566582877,1.727,3751.5,3751.4,1.70558]
[1753566585583,1.727,3751.5,3751.4,1.98778]
[1753566600501,2.6508,3751.9,3751.8,1.52302]
[1753566600689,2.91035787,3751.9,3751.8,1.98112]
[1753566601000,1.2,3751.9,3751.8,1.98112]
[1753566605399,0.301,3752.6,3752.5,0.53282]
[1753566605602,0.7995,3752.7,3752.6,0.92971]
[1753566605797,1.2995,3752.7,3752.6,1.52651]
[1753566606204,1.7411,3752.7,3752.6,1.52651]
[1753566613908,1.1678,3753.3,3753.2,2.09542]
[1753566614308,1.4688,3753.3,3753.2,2.09542]
[1753566615908,1.2698,3753.3,3753.2,2.09542]
[1753566616300,1.5601,3753.3,3753.2,2.09542]
[1753566616506,1.7591,3753.3,3753.2,2.09542]
[1753566617712,0.018,3753.3,3753.2,2.09542]
[1753566617912,0.4596,3753.3,3753.2,2.09542]
[1753566618102,0.301,3753.8,3753.5,1.0522]
[1753566618303,0.301,3753.8,3753.4,1.23269]
[1753566618304,3.4078,3753.9,3753.8,1.23264]
[1753566618509,3.4078,3753.9,3753.8,2.28484]
[1753566619004,3.917,3753.9,3753.8,2.28484]
[1753566619313,0.301,3754.2,3753.8,1.7522]
[1753566619613,0.4967,3754.1,3754.0,2.28481]
[1753566619909,3.2078,3754.4,3754.0,1.7522]
[1753566620106,4.7499,3754.4,3754.3,2.28477]
[1753566620601,4.9489,3754.4,3754.3,2.28477]
[1753566621408,3.916,3754.8,3754.7,1.7522]
[1753566621912,4.9489,3754.8,3754.7,2.28471]
[1753566622509,1.7411,3754.8,3754.7,2.28471]
[1753566622708,1.7411,3754.8,3754.7,0.53251]
[1753566622905,1.7411,3754.8,3754.7,0.84601]
[1753566623110,1.7411,3754.8,3754.7,2.28471]
[1753566623614,1.7411,3754.8,3754.7,2.27821745]
[1753566624611,3.2078,3755.0,3754.2,1.33145]
[1753566624612,4.9489,3755.0,3754.9,2.28468]
[1753566625209,1.7411,3755.3,3755.2,1.7522]
[1753566625508,1.7411,3755.3,3755.2,2.28464]
[1753566627118,1.2518,3755.3,3755.2,2.28464]
[1753566631734,1.514,3755.5,3755.4,2.25751]
[1753566633430,1.2015,3755.5,3755.4,2.25751]
[1753566633627,0.4931,3755.9,3755.8,1.22915]
[1753566633934,5.1156,3755.9,3755.8,2.25745]
[1753566634830,1.9078,3755.9,3755.8,0.53235]
[1753566638227,1.7078,3755.2,3755.1,0.53245]
[1753566638731,1.7078,3755.2,3755.0,0.53246]
[1753566638732,1.75665,3755.1,3755.0,0.53246]
[1753566638933,0.6779,3755.1,3754.6,0.2875]
[1753566639236,1.7078,3754.7,3754.6,0.2875]
[1753566639537,1.7078,3754.7,3754.6,0.82002]
[1753566639729,1.7078,3754.7,3754.6,1.63842]
[1753566639929,1.7078,3754.7,3754.6,1.20902]
[1753566640129,1.7078,3754.7,3754.4,3.74034]
[1753566640333,0.6779,3754.1,3754.0,4.43721]
[1753566640544,1.7078,3754.1,3754.0,5.46551]
[1753566641542,1.7078,3754.1,3754.0,4.41691]
[1753566642935,1.7078,3754.1,3754.0,4.84631]
[1753566643135,1.7078,3754.1,3754.0,5.15771]
[1753566643537,1.7078,3754.1,3754.0,5.46551]
[1753566643744,1.2015,3754.1,3754.0,5.46551]
[1753566643929,0.4836,3754.4,3754.3,2.25767]
[1753566644134,1.514,3754.7,3754.6,2.25762]
[1753566644330,1.7078,3754.7,3754.6,2.25762]
[1753566645439,1.2015,3755.0,3754.9,0.92148]
[1753566645644,1.2015,3755.0,3754.9,2.25758]
[1753566646241,4.1167,3755.3,3755.2,2.25754]
[1753566646432,4.87079784,3755.3,3755.2,2.25754]
[1753566646634,5.37709784,3755.3,3755.2,2.25754]
[1753566646940,5.66969784,3755.3,3755.2,2.25754]
[1753566650536,1.95559784,3755.3,3755.2,2.25754]
[1753566650734,0.75409784,3755.3,3755.2,2.25754]
[1753566652638,0.7174,3755.7,3755.6,1.03498]
[1753566652843,1.66373429,3755.7,3755.6,2.25748]
[1753566653239,1.95683429,3755.7,3755.6,2.25748]
[1753566653942,1.23943429,3755.7,3755.6,2.25748]
[1753566655745,1.66423429,3755.7,3755.6,2.25748]
[1753566655945,1.95683429,3755.7,3755.6,2.25748]
[1753566656639,2.46313429,3755.7,3755.6,2.25748]
[1753566656843,2.46313429,3755.7,3755.6,0.81988]
[1753566657035,2.46313429,3755.7,3755.6,0.53238]
[1753566657646,2.46313429,3755.7,3755.6,2.28238]
[1753566658553,1.7078,3755.7,3755.6,0.83638]
[1753566658847,1.7078,3755.7,3755.6,2.00908]
[1753566659042,1.7078,3755.7,3755.6,2.30328]
[1753566660149,1.7078,3755.7,3755.6,0.83638]
[1753566660738,1.7078,3755.7,3755.6,2.00908]
[1753566661144,1.7078,3755.7,3755.6,2.30328]
[1753566665249,0.4248,3755.7,3755.6,2.30328]
[1753566665549,5.1808,3755.9,3755.8,2.30325]
[1753566666345,5.1808,3755.9,3755.8,0.304]
[1753566666545,1.773,3755.7,3755.6,1.1678]
[1753566666850,1.773,3755.7,3755.6,1.99928]
[1753566667150,1.773,3755.7,3755.6,1.70018]
[1753566667649,1.773,3755.7,3755.6,0.74048]
[1753566668345,1.773,3755.7,3755.6,1.20418]
[1753566668649,1.773,3755.7,3755.6,2.30328]
[1753566670047,1.55160935,3757.5,3757.4,0.53213]
[1753566670247,0.71837161,3757.5,3757.4,3.73993]
[1753566670561,0.11927161,3757.5,3757.4,8.73993]
[1753566670852,1.973,3757.9,3757.8,0.53207]
[1753566671043,1.973,3757.9,3757.4,3.2078]
[1753566671247,1.773,3756.7,3756.6,3.2078]
[1753566671443,0.7109,3756.4,3756.3,0.53227]
[1753566671647,1.03528,3756.3,3756.1,2.36853634]
[1753566671943,1.773,3756.2,3756.1,0.53231]
[1753566672144,0.296,3756.2,3756.1,3.42902743]
[1753566672549,0.296,3756.4,3756.1,3.42902743]
[1753566672746,0.296,3756.4,3756.3,0.53228]
[1753566672951,0.296,3756.4,3756.3,0.75350743]
[1753566674050,0.296,3756.4,3756.3,0.22122743]
[1753566674651,0.296,3756.4,3756.3,0.75350743]
[1753566674851,0.296,3756.4,3756.3,0.22122743]
[1753566675056,0.806,3756.4,3756.3,0.75350743]
[1753566675455,1.773,3756.4,3756.3,0.22122743]
[1753566676254,2.30527,3756.4,3756.3,0.22122743]
[1753566676552,1.773,3756.4,3756.3,0.22122743]
[1753566676757,1.773,3756.4,3756.2,0.5323]
[1753566676958,0.7109,3756.4,3756.3,3.2078]
[1753566677159,0.7109,3756.4,3756.3,3.42857558]
[1753566677556,1.773,3756.4,3756.3,3.2078]
[1753566677759,0.7109,3756.4,3756.3,3.2078]
[1753566677958,2.30527,3756.4,3756.3,3.42858506]
[1753566678464,2.30527,3756.4,3756.3,0.22078506]
[1753566679554,1.24325,3755.8,3755.7,3.2078]
[1753566679754,2.30535,3755.8,3755.7,3.2078]
[1753566684559,1.2433,3755.5,3755.4,0.8266]
[1753566684866,2.3054,3755.5,3755.4,3.7228]
[1753566685461,2.3054,3755.5,3755.4,3.2078]
[1753566685963,2.30545,3755.1,3755.0,3.2078]
[1753566687759,1.95481,3754.7,3754.6,3.2078]
[1753566688067,2.25171,3754.7,3754.6,3.2078]
[1753566688362,1.20978,3754.2,3754.1,0.5347]
[1753566688558,2.25178,3754.2,3754.1,0.5347]
[1753566688763,1.7192,3754.2,3754.1,1.06729]
[1753566690261,1.7192,3754.2,3754.1,0.53259]
[1753566691066,1.7192,3754.2,3754.1,1.06729]
[1753566691865,0.5844,3754.2,3754.1,1.06729]
[1753566692766,0.7755,3754.2,3754.1,1.06729]
[1753566693464,0.9644,3754.2,3754.1,1.06729]
[1753566695263,0.2969,3754.2,3754.1,1.06729]
[1753566695772,1.2616,3754.2,3754.1,1.06729]
[1753566695971,0.2969,3754.2,3754.1,1.06729]
[1753566696173,0.2969,3754.5,3754.4,1.06725]
[1753566696373,0.2969,3754.7,3754.6,0.3142]
[1753566696573,0.2969,3754.7,3754.6,1.06722]
[1753566696870,0.5844,3755.0,3754.9,1.06718]
[1753566697069,0.5844,3755.0,3754.9,4.27498]
[1753566697376,0.2969,3755.0,3754.9,4.27498]
[1753566697672,3.2078,3755.9,3754.9,3.9043]
[1753566697871,0.6769,3756.1,3756.0,1.69042]
[1753566699075,0.2969,3756.1,3756.0,1.69042]
[1753566699472,1.2969,3756.4,3756.3,1.04008]
[1753566699672,1.2969,3756.4,3756.3,1.69038]
[1753566701676,2.7192,3756.4,3756.3,1.69038]
[1753566701876,2.7192,3756.4,3756.3,1.50168]
[1753566702076,2.7192,3756.4,3756.3,1.30808]
[1753566702274,2.7192,3756.4,3756.3,0.84648]
[1753566702677,2.7192,3756.4,3756.3,0.53228]
[1753566702873,2.7192,3756.4,3756.3,1.50168]
[1753566703077,2.7192,3756.4,3756.3,1.30808]
[1753566703578,2.7192,3756.4,3756.3,0.84648]
[1753566704276,2.7192,3756.4,3756.3,1.30808]
[1753566704675,2.7192,3756.4,3756.3,1.50168]
[1753566704979,2.7192,3756.4,3756.3,1.69038]
[1753566706980,2.2616,3756.4,3756.3,1.69038]
[1753566707180,1.488,3756.4,3756.3,1.69038]
[1753566707382,1.7755,3756.4,3756.3,1.69038]
[1753566707680,1.9644,3756.4,3756.3,1.69038]
[1753566707890,2.2616,3756.4,3756.3,1.69038]
[1753566708180,2.2616,3756.4,3756.3,1.90833875]
[1753566708681,2.2616,3756.4,3756.3,1.90833585]
[1753566709680,2.7192,3756.4,3756.3,1.90833585]
[1753566709878,2.7192,3756.4,3756.3,0.75023585]
[1753566710078,2.7192,3756.4,3756.3,0.53228]
[1753566710282,0.6772,3756.3,3755.8,3.2078]
[1753566710582,0.6772,3755.4,3755.3,0.4616]
[1753566710780,1.6868,3755.4,3755.3,1.721954]
[1753566711782,1.6868,3755.4,3755.3,0.750454]
[1753566716278,1.6868,3755.4,3755.3,1.721954]
[1753566716478,1.6868,3755.4,3755.3,2.007154]
[1753566717380,1.6868,3755.4,3755.3,1.2604753]
[1753566718383,2.21921,3755.4,3755.3,0.2181553]
[1753566718687,0.4972,3754.8,3754.7,0.4513]
[1753566718887,1.5079,3754.8,3754.7,0.98381]
[1753566719085,1.5079,3754.8,3754.7,1.29791]
[1753566719583,1.5079,3754.8,3754.7,1.48891]
[1753566720885,2.04039,3754.8,3754.7,0.53251]
[1753566721184,1.5079,3754.7,3754.6,0.53252]
[1753566721381,1.22863,3754.6,3754.5,0.53253]
[1753566721683,1.5079,3754.5,3754.4,1.03764]
[1753566721986,0.2988,3754.5,3754.4,2.16874]
[1753566722189,1.008,3754.8,3754.7,1.23191]
[1753566722386,1.008,3754.8,3754.7,2.16871]
[1753566722776,0.5037,3754.8,3754.7,2.16871]
[1753566722979,1.008,3755.2,3755.1,2.16865]
[1753566725492,1.5079,3755.2,3755.1,2.16865]
[1753566725989,1.5079,3755.2,3755.1,1.78525]
[1753566726690,1.5079,3755.2,3755.1,2.16865]
[1753566728086,1.5079,3755.2,3755.1,0.84655]
[1753566728288,1.5079,3755.2,3755.1,0.53245]
[1753566729079,1.5079,3755.1,3755.0,0.53246]
[1753566730084,0.1989,3754.6,3754.5,1.03764]
[1753566730284,1.5079,3754.6,3754.5,0.53254]
[1753566731486,0.6042,3754.6,3754.5,1.03764]
[1753566731686,0.6042,3754.6,3754.5,1.78534]
[1753566731888,1.5079,3754.6,3754.5,2.16874]
[1753566732585,1.5079,3754.6,3754.5,1.97964]
[1753566732990,2.04042,3754.6,3754.5,1.03764]
[1753566733290,2.04044,3754.5,3754.4,0.53255]
[1753566733692,0.6961,3754.3,3754.1,3.2078]
[1753566733894,1.22868,3754.2,3754.1,3.2078]
[1753566734092,0.6961,3754.2,3754.1,5.37659]
[1753566734294,0.4038,3754.2,3754.1,5.37659]
[1753566736497,0.7026,3754.2,3754.1,5.37659]
[1753566736894,2.04048,3754.2,3754.1,4.6549]
[1753566737196,1.5079,3754.2,3754.1,4.1642]
[1753566737396,1.5079,3754.2,3754.1,4.4606]
[1753566737793,1.5079,3754.2,3754.1,4.6549]
[1753566737994,1.5079,3754.2,3754.1,5.18749]
[1753566738499,1.5079,3754.2,3754.1,5.37659]
[1753566738801,2.04048,3754.2,3754.1,5.37659]
[1753566739002,1.5079,3754.2,3754.1,5.37659]
[1753566739204,1.5079,3754.2,3754.1,4.69679]
[1753566739589,1.5079,3754.2,3754.1,4.99319]
[1753566739796,2.04048,3754.2,3754.1,4.99319]
[1753566740000,2.04048,3754.2,3754.1,3.2078]
[1753566740296,2.04052,3753.9,3753.8,0.72976095]
[1753566740901,2.04052,3753.9,3753.8,1.04386095]
[1753566741497,1.5079,3753.9,3753.8,1.04386095]
[1753566741697,1.5079,3753.9,3753.8,1.23486095]
[1753566741902,1.5079,3753.9,3753.8,1.68616095]
[1753566742505,1.2156,3754.2,3754.1,2.16879]
[1753566744198,1.008,3754.2,3754.1,2.16879]
[1753566747908,1.2158,3754.2,3754.1,2.16879]
[1753566757117,1.5201,3754.2,3754.1,2.16879]
[1753566779646,1.5201,3754.2,3754.1,2.16899]
[1753566781444,1.2158,3754.2,3754.1,2.16899]
[1753566781745,1.008,3754.2,3754.1,2.16899]
[1753566783342,1.2159,3754.2,3754.1,2.16899]
[1753566785849,1.2159,3754.2,3754.1,5.37679]
[1753566787952,1.008,3754.2,3754.1,5.37679]
[1753566788354,0.5014,3754.4,3754.3,2.17066]
[1753566788854,0.3044,3754.4,3754.3,2.17066]
[1753566789154,0.6128,3754.6,3754.5,2.17064]
[1753566789456,0.3044,3754.6,3754.5,2.17064]
[1753566791052,0.8098,3754.6,3754.5,2.17064]
[1753566792247,1.006,3754.6,3754.5,2.17064]
[1753566792452,1.2139,3754.6,3754.5,2.17064]
[1753566793554,1.006,3754.6,3754.5,2.17064]
[1753566793957,21.9765,3755.3,3755.2,1.136]
[1753566794249,22.6781,3755.3,3755.2,2.17054]
[1753566794454,22.3665,3755.3,3755.2,2.17054]
[1753566794654,22.6709,3755.3,3755.2,2.17054]
[1753566795857,0.3044,3755.3,3755.2,2.17054]
[1753566796057,4.1173,3755.6,3755.5,1.24399]
[1753566796357,4.2138,3755.6,3755.5,2.17049]
[1753566799558,1.006,3755.6,3755.5,2.17049]
[1753566800359,1.2139,3755.6,3755.5,2.17049]
[1753566801458,1.5255,3755.6,3755.5,2.17049]
[1753566805155,1.5255,3755.6,3755.5,1.98119]
[1753566805351,1.5255,3755.6,3755.5,1.77269]
[1753566806763,1.5255,3755.6,3755.5,0.53239]
[1753566807161,1.5255,3755.6,3755.5,1.77269]
[1753566807562,1.5255,3755.6,3755.5,1.96169]
[1753566807861,0.2033,3754.6,3754.0,5.58563375]
[1753566808053,1.4785,3754.4,3754.3,1.79636]
[1753566808257,1.4785,3754.4,3754.3,1.48826]
[1753566809057,1.4785,3754.4,3754.3,1.79636]
[1753566809765,0.6853,3754.1,3753.9,2.37783375]
[1753566809956,0.6853,3754.1,3753.8,0.96883095]
[1753566809957,1.4785,3753.9,3753.8,0.96883095]
[1753566810563,2.01112,3753.9,3753.8,0.19713095]
[1753566811561,2.01112,3753.9,3753.8,1.64993095]
[1753566811562,1.1926,3753.9,3753.8,1.64993095]
[1753566811771,0.607,3754.2,3754.1,1.01769]
[1753566811961,0.6852,3754.5,3754.4,1.22205]
[1753566812159,0.8928,3754.5,3754.4,2.18275]
[1753566812358,1.1926,3754.5,3754.4,2.18275]
[1753566814968,0.985,3754.5,3754.4,2.18275]
[1753566815665,0.6992,3754.5,3754.4,2.18275]
[1753566815864,0.2998,3754.5,3754.4,2.18275]
[1753566816469,0.985,3755.1,3755.0,1.22196]
[1753566816671,0.6992,3755.1,3755.0,2.18266]
[1753566822770,0.985,3755.3,3755.2,2.18264]
[1753566823174,1.4784,3755.3,3755.2,2.18264]
[1753566823470,1.4784,3755.3,3755.2,0.53244]
[1753566823666,0.2033,3754.8,3754.7,3.2078]
[1753566823969,0.6853,3754.8,3754.3,0.4636]
[1753566824173,1.4784,3754.4,3754.3,1.48826]
[1753566825771,1.4784,3754.4,3754.3,0.82026]
[1753566825978,1.4784,3754.4,3754.3,0.53256]
[1753566826978,1.4784,3754.4,3754.3,1.79636]
[1753566829675,1.4784,3754.4,3754.3,1.48826]
[1753566831779,1.4784,3754.4,3754.3,0.53256]
[1753566832482,1.4784,3754.4,3754.3,1.28386]
[1753566832676,1.4784,3754.4,3754.3,1.79636]
[1753566836784,1.4784,3754.4,3754.3,2.18276]
[1753566846595,1.4784,3754.4,3754.3,1.99376]
[1753566846798,1.4784,3754.4,3754.3,0.53256]
[1753566847594,1.4784,3754.4,3754.3,1.73656]
[1753566850498,1.4784,3754.4,3754.3,1.92576]
[1753566851694,1.4784,3754.4,3754.3,2.12096]
[1753566860806,1.022,3754.8,3754.7,2.12091]
[1753566861004,1.2215,3754.8,3754.7,2.12091]
[1753566861203,1.52,3754.8,3754.7,2.12091]
[1753566861405,1.52,3754.8,3754.7,1.93171]
[1753566861710,1.52,3754.8,3754.7,1.73651]
[1753566864507,1.52,3754.8,3754.7,2.12091]
[1753566865504,1.52,3754.8,3754.7,1.73651]
[1753566866509,1.52,3754.8,3754.7,1.93171]
[1753566866709,1.52,3754.8,3754.7,2.12091]
[1753566869813,1.52,3754.8,3754.7,1.73651]
[1753566875518,1.52,3754.8,3754.7,2.12781]
[1753566876220,1.52,3754.8,3754.7,1.93841]
[1753566880020,1.52,3754.8,3754.7,2.12781]
[1753566892722,1.2244,3755.1,3755.0,2.15016]
[1753566893722,1.0167,3755.1,3755.0,2.15016]
[1753566893924,21.264,3755.2,3755.1,1.23245]
[1753566894129,21.264,3755.2,3755.1,2.15015]
[1753566894929,3.5134,3755.4,3755.3,2.15012]
[1753566895127,4.20061973,3755.4,3755.3,2.15012]
[1753566895323,0.99281973,3755.4,3755.3,2.15012]
[1753566896034,1.50511973,3755.4,3755.3,2.15012]
[1753566896628,1.70391973,3755.4,3755.3,2.15012]
[1753566897328,1.91151973,3755.4,3755.3,2.15012]
[1753566897739,0.68721973,3755.4,3755.3,2.15012]
[1753566897934,0.287,3755.4,3755.3,2.15012]
[1753566898335,22.0381,3755.4,3755.3,2.15012]
[1753566898537,22.23,3755.4,3755.3,2.15012]
[1753566899032,22.735,3755.4,3755.3,1.75912]
[1753566899439,1.473,3755.4,3755.3,1.75912]
[1753566899632,1.473,3755.4,3755.3,2.15402]
[1753566899836,22.735,3755.4,3755.3,2.15402]
[1753566900537,22.735,3755.4,3755.3,1.75912]
[1753566901141,22.735,3755.4,3755.3,1.94822]
[1753566901633,22.735,3755.4,3755.3,2.15402]
[1753566902735,21.935,3755.4,3755.3,2.15402]
[1753566904739,1.1756,3755.6,3755.5,1.23059]
[1753566904945,22.4356,3755.6,3755.5,2.16739]
[1753566907147,3.2078,3755.8,3755.7,0.93677]
[1753566907351,25.1408,3755.8,3755.7,2.16737]
[1753566907648,25.4358,3755.8,3755.7,2.16737]
[1753566908050,24.4678,3755.8,3755.7,2.16737]
[1753566909545,1.0349,3756.2,3756.1,0.6982]
[1753566909546,0.295,3756.2,3756.1,0.6982]
[1753566909751,0.582,3756.2,3756.1,2.16731]
[1753566910350,0.7739,3756.2,3756.1,2.16731]
[1753566912045,0.968,3756.2,3756.1,2.16731]
[1753566914152,21.26,3756.3,3756.2,1.23049]
[1753566914542,21.842,3756.3,3756.2,2.16729]
[1753566915156,1.0,3756.4,3756.3,0.53228]
[1753566915354,1.0,3756.4,3756.3,2.16728]
[1753566916453,1.295,3756.4,3756.3,2.16728]
[1753566916956,1.582,3756.4,3756.3,2.16728]
[1753566917146,1.968,3756.4,3756.3,2.16728]
[1753566917451,2.4033,3756.4,3756.3,2.16728]
[1753566918156,1.968,3756.4,3756.3,2.16728]
[1753566918542,1.0,3756.4,3756.3,2.16728]
[1753566918945,1.0,3756.4,3756.3,7.16728]
[1753566920354,1.0,3756.4,3756.3,2.16728]
[1753566920754,1.0,3756.4,3756.3,7.16728]
[1753566921063,1.582,3756.4,3756.3,2.16728]
[1753566921356,2.7007,3756.4,3756.3,1.86108]
[1753566922756,2.7007,3756.4,3756.3,2.16728]
[1753566924760,2.7007,3756.4,3756.3,1.86108]
[1753566925760,2.7007,3756.4,3756.3,1.67198]
[1753566926061,2.7007,3756.4,3756.3,1.46618]
[1753566929758,2.7007,3756.4,3756.3,1.65488]
[1753566931565,2.7007,3756.4,3756.3,1.46618]
[1753566935760,2.7007,3756.4,3756.3,0.53228]
[1753566935959,2.7007,3756.4,3756.3,2.17988]
[1753566936161,2.7007,3756.4,3756.3,0.98328]
[1753566936660,2.7007,3756.4,3756.3,1.29248]
[1753566937164,2.7007,3756.4,3756.3,1.49938]
[1753566937864,2.7007,3756.4,3756.3,1.88398]
[1753566938562,1.968,3756.4,3756.3,2.17988]
[1753566941758,2.4101,3756.4,3756.3,2.17988]
[1753566941967,1.968,3756.4,3756.3,2.17988]
[1753566943365,2.4101,3756.4,3756.3,2.17988]
[1753566945563,2.6956,3756.4,3756.3,1.88398]
[1753566945762,2.6956,3756.4,3756.3,1.49938]
[1753566946971,2.6956,3756.4,3756.3,0.53228]
[1753566947670,2.6956,3756.4,3756.3,1.29248]
[1753566949675,2.6956,3756.4,3756.3,1.49938]
[1753566951971,2.6956,3756.4,3756.2,3.74009]
[1753566952166,1.20818,3756.3,3756.2,3.2078]
[1753566952368,2.22388,3756.3,3756.2,3.2078]
[1753566954463,1.6916,3756.3,3755.9,0.53233]
[1753566954669,1.6916,3756.0,3755.9,0.53233]
[1753566956372,1.6916,3756.0,3755.9,1.68813]
[1753566956875,1.6916,3756.0,3755.9,1.88403]
[1753566959969,1.6916,3756.0,3755.9,2.17273]
[1753566961873,1.6916,3756.0,3755.9,1.88403]
[1753566963979,1.6916,3756.0,3755.9,1.29253]
[1753566964874,1.6916,3756.0,3755.9,1.49303]
[1753566965178,1.6916,3756.0,3755.9,1.68213]
[1753566968887,1.6916,3756.0,3755.9,1.88613]
[1753566970886,2.0052,3756.4,3756.3,2.16398]
[1753566973287,0.9409,3757.2,3757.1,0.706]
[1753566973480,1.4293,3757.2,3757.1,1.98017]
[1753566975290,1.7426,3757.2,3757.1,1.98017]
[1753566977581,1.7426,3757.2,3757.1,0.53217]
[1753566977786,0.7138,3757.2,3757.1,0.53217]
[1753566978095,1.24605,3756.6,3756.4,0.53226]
[1753566978295,1.24605,3756.6,3756.5,0.53225]
[1753566978492,1.7426,3756.2,3756.1,3.2078]
[1753566978789,1.0265,3755.9,3755.8,0.53234]
[1753566978996,1.7426,3755.9,3755.8,0.53234]
[1753566979392,1.7426,3755.9,3755.7,3.2078]
[1753566979393,1.7426,3755.8,3755.7,3.74016]
[1753566979592,1.7426,3755.8,3755.7,3.2078]
[1753566979792,1.7426,3755.8,3755.7,3.74017]
[1753566980891,1.7426,3755.8,3755.7,3.94067]
[1753566981097,1.7426,3755.8,3755.7,4.68267]
[1753566982592,1.7426,3755.8,3755.7,5.18817]
[1753566983801,0.2891,3755.8,3755.7,5.18817]
[1753566984392,0.7138,3755.4,3755.3,0.53241]
[1753566984692,1.7426,3755.0,3754.9,3.74028]
[1753566984897,1.7426,3755.0,3754.9,5.18828]
[1753566989703,0.9951,3755.3,3755.2,0.6998]
[1753566989904,1.7184,3755.3,3755.2,1.97994]
[1753566991504,1.7184,3755.3,3755.2,1.79084]
[1753566991706,1.7184,3755.3,3755.2,1.49644]
[1753566993802,1.7184,3755.3,3755.2,0.72824]
[1753566995801,1.7184,3755.3,3755.2,0.99244]
[1753567000105,0.7094,3755.0,3754.9,3.2078]
[1753567000304,2.25086,3755.0,3754.9,3.2078]
[1753567000810,2.25086,3755.0,3754.9,4.6553]
[1753567002110,2.25086,3755.0,3754.9,5.18778]
[1753567002511,2.25086,3755.0,3754.9,4.6553]
[1753567006808,2.25086,3755.0,3754.9,5.18778]
[1753567007106,2.25086,3755.0,3754.9,1.97998]
[1753567010915,2.25086,3755.0,3754.9,0.99248]
[1753567011915,2.25086,3755.0,3754.9,1.28688]
[1753567012316,2.25086,3755.0,3754.9,1.47598]
[1753567012512,4.9262,3755.4,3755.3,1.03642]
[1753567012717,1.7184,3755.4,3755.3,1.97992]
[1753567020019,0.2857,3755.4,3755.3,1.97992]
[1753567020416,21.5417,3755.6,3755.5,1.20619]
[1753567020720,22.3053,3755.6,3755.5,1.95779]
[1753567022117,21.255,3755.6,3755.5,1.95779]
[1753567022523,0.53231,3756.1,3756.0,0.53232]
[1753567022524,0.7575,3756.1,3756.0,0.53232]
[1753567022721,1.0503,3756.1,3756.0,1.95772]
[1753567022916,0.2867,3756.1,3756.0,1.95772]
[1753567023219,21.254,3756.2,3756.1,1.20611]
[1753567023419,21.254,3756.2,3756.1,1.95771]
[1753567023822,21.5407,3756.2,3756.1,1.95771]
[1753567024328,21.8335,3756.2,3756.1,1.95771]
[1753567024522,23.0099,3756.2,3756.1,1.95771]
[1753567029027,21.5407,3756.2,3756.1,1.95771]
[1753567029224,21.254,3756.2,3756.1,1.95771]
[1753567029818,1.0503,3756.4,3756.3,1.20608]
[1753567030125,1.7559,3756.4,3756.3,1.95728]
[1753567043933,1.0503,3756.6,3756.3,0.6738]
[1753567044237,1.0503,3756.6,3756.5,4.41385]
[1753567044638,1.7559,3756.6,3756.5,5.16505]
[1753567047140,0.2867,3756.6,3756.5,5.16505]
[1753567048337,0.7636,3756.8,3756.7,0.53222]
[1753567048638,0.2948,3756.8,3756.7,1.99632]
[1753567048830,1.0354,3757.0,3756.9,1.2358]
[1753567049037,1.0354,3757.0,3756.9,5.2041]
[1753567049341,0.2948,3757.0,3756.9,5.2041]
[1753567049738,1.0354,3757.0,3756.9,5.2041]
[1753567051940,1.7112,3757.0,3756.9,5.0152]
[1753567052140,1.7112,3757.0,3756.9,3.9328]
[1753567054045,1.7112,3757.0,3756.9,3.74]
[1753567054231,1.7112,3757.0,3756.9,0.5322]
[1753567063849,1.7112,3757.0,3756.9,1.4855]
[1753567064050,1.7112,3757.0,3756.9,1.6905]
[1753567064250,1.7112,3757.0,3756.9,5.2041]
[1753567066353,3.8836,3757.7,3757.6,0.5321]
[1753567067048,4.919,3757.7,3757.6,0.9888]
[1753567067654,4.919,3757.7,3757.6,1.4854]
[1753567069053,4.919,3757.7,3757.6,1.9962]
[1753567069654,1.7112,3757.7,3757.6,1.9962]
[1753567071753,1.7112,3757.7,3757.6,1.8073]
[1753567071958,1.7112,3757.7,3757.6,1.2965]
[1753567072157,1.7112,3757.7,3757.6,1.4854]
[1753567072756,1.7112,3757.7,3757.6,0.7249]
[1753567073459,1.7112,3757.7,3757.6,0.5321]
[1753567075562,1.7112,3757.7,3757.6,1.4854]
[1753567077363,1.7112,3757.7,3757.6,1.9962]
[1753567080766,1.4711,3757.4,3757.3,0.76]
[1753567080968,1.7793,3757.4,3757.3,1.99084]
[1753567089880,1.7793,3757.4,3757.3,1.80254]
[1753567090882,2.31142,3757.4,3757.1,3.6598]
[1753567091080,1.7793,3757.4,3757.3,0.53214]
[1753567093688,1.7793,3757.4,3757.3,0.73794]
[1753567093881,1.7793,3757.4,3757.3,1.00164]